bitfinex/quotes_ETHUSD_20220201
["timestamp","ask_amount","ask_price","bid_price","bid_amount"]
[1643749635092,1.51745036,2783.8,2783.2,0.3]
[1643749635289,1.51745036,2783.7,2783.2,0.3]
[1643749635489,0.1796,2784.3,2783.2,0.3]
[1643749635737,1.51752884,2784.2,2783.2,0.3]
[1643749635937,2.18454126,2784.1,2783.2,0.3]
[1643749636138,1.51752884,2784.0,2783.2,0.3]
[1643749636437,2.01148306,2783.9,2783.2,0.3]
[1643749636637,1.51752884,2783.8,2783.2,0.3]
[1643749637139,1.51752884,2783.7,2783.2,0.3]
[1643749637338,1.51752884,2783.6,2783.2,0.3]
[1643749637539,3.90815148,2784.3,2783.2,0.3]
[1643749637742,3.90815148,2784.3,2782.7,0.8983]
[1643749637743,1.51757371,2784.2,2783.0,0.3]
[1643749637939,2.39131941,2784.1,2782.8,0.3]
[1643749638140,1.51757371,2784.0,2782.8,0.3]
[1643749638342,2.27369146,2783.9,2782.8,0.3]
[1643749638543,1.51757371,2783.8,2782.8,0.3]
[1643749638843,2.09192085,2783.7,2782.8,0.3]
[1643749639044,1.51757371,2783.6,2782.7,0.8983]
[1643749639394,1.51757371,2783.6,2782.4,3.11844362]
[1643749639395,2.2070616,2783.5,2782.4,1.79666]
[1643749639587,1.51757371,2783.4,2782.3,7.48294768]
[1643749639790,2.22104818,2783.3,2782.3,7.48294768]
[1643749639986,1.69717371,2783.4,2782.3,7.48294768]
[1643749639987,0.1796,2783.4,2782.3,7.48294768]
[1643749640186,0.17934,2783.8,2782.3,7.48294768]
[1643749640187,1.517785,2783.3,2782.3,7.48294768]
[1643749640391,1.96898638,2783.2,2782.3,7.48294768]
[1643749640587,0.517,2783.5,2782.3,7.48294768]
[1643749640588,2.19757727,2783.4,2782.3,7.48294768]
[1643749640789,1.69739916,2783.3,2782.3,7.48294768]
[1643749640987,1.98333971,2783.2,2782.3,8.08294768]
[1643749641193,1.51785419,2783.1,2782.3,8.08294768]
[1643749641390,1.97000759,2783.0,2782.3,8.08294768]
[1643749641689,0.1796,2783.4,2782.3,8.08294768]
[1643749641690,2.58893694,2783.4,2782.3,8.08294768]
[1643749641891,1.51788156,2783.3,2782.3,8.08294768]
[1643749642090,2.2495564,2783.2,2782.3,0.01294768]
[1643749642288,2.2495564,2783.2,2782.0,1.39488362]
[1643749642488,2.2495564,2783.2,2781.9,4.202]
[1643749642489,1.51792522,2783.1,2781.9,4.202]
[1643749642790,1.51792522,2783.1,2781.7,9.71000362]
[1643749642791,2.85657591,2783.0,2781.7,7.64388362]
[1643749642994,1.51792522,2782.9,2781.7,7.47]
[1643749643254,2.29187948,2782.8,2781.7,8.07]
[1643749643554,2.29187948,2782.8,2781.7,7.47]
[1643749643751,0.517,2782.7,2781.7,7.47]
[1643749643950,2.46010244,2782.6,2781.7,7.47]
[1643749644153,0.1797,2782.6,2781.7,7.47]
[1643749644551,2.57448417,2782.9,2781.7,7.47]
[1643749644751,2.57448417,2782.9,2781.7,8.07]
[1643749644954,2.75382417,2782.9,2781.7,8.07]
[1643749645151,0.517,2782.8,2781.7,7.76271]
[1643749645353,2.50146028,2782.7,2781.7,7.76271]
[1643749645558,3.01846028,2782.7,2781.7,7.76003]
[1643749646150,3.19780028,2782.7,2781.7,0.29003]
[1643749646352,1.0,2782.6,2781.2,0.25]
[1643749646652,0.99999999,2782.4,2781.2,0.25]
[1643749646894,0.99999999,2782.4,2780.8,3.2599]
[1643749646895,3.28283916,2782.3,2780.8,3.2599]
[1643749647097,0.13819997,2782.2,2780.8,3.2599]
[1643749647292,0.6967,2782.1,2780.8,3.2599]
[1643749647493,2.16857376,2782.0,2780.8,3.2599]
[1643749647695,0.1797,2781.9,2780.8,3.2599]
[1643749647893,0.1797,2781.9,2780.8,3.8599]
[1643749649295,2.24262179,2781.9,2780.8,3.8599]
[1643749649496,2.24262179,2781.9,2780.8,3.2599]
[1643749649695,0.1797,2781.9,2780.8,3.2599]
[1643749649894,2.19002333,2781.9,2780.8,3.2599]
[1643749650499,2.19002333,2781.9,2780.6,3.0214]
[1643749650737,0.1797,2781.9,2780.6,4.5204]
[1643749650932,0.1797,2781.9,2780.6,3.6214]
[1643749651133,2.20014025,2781.9,2780.6,3.6214]
[1643749652032,0.1797,2781.9,2780.7,0.89899]
[1643749652331,2.19572814,2781.9,2780.8,0.3]
[1643749652530,0.17934,2782.1,2780.8,0.3]
[1643749652531,0.1797,2782.0,2780.8,0.3]
[1643749653536,0.1797,2782.0,2781.1,0.32121825]
[1643749653737,0.85032973,2781.8,2781.1,0.32121825]
[1643749653936,0.1797,2781.7,2781.1,0.32121825]
[1643749654591,2.16072246,2781.7,2781.1,0.32121825]
[1643749654790,2.16454848,2781.7,2781.1,0.32121825]
[1643749654991,0.1797,2781.7,2781.1,0.32121825]
[1643749655190,2.18441698,2781.7,2780.4,4.26712659]
[1643749655392,0.69634,2781.6,2780.4,0.17388362]
[1643749655591,2.99595718,2781.5,2780.3,0.42388362]
[1643749655791,2.99595718,2781.5,2780.3,0.25]
[1643749656191,2.99595718,2781.5,2781.0,0.40013532]
[1643749656593,2.18613776,2781.5,2781.0,0.40013532]
[1643749656794,0.1797,2781.5,2781.0,0.40013532]
[1643749656994,1.1698,2781.9,2781.1,0.89062621]
[1643749656995,0.1797,2781.6,2781.1,0.89062621]
[1643749657195,0.1797,2781.8,2781.2,0.3]
[1643749657393,0.1797,2782.0,2781.2,0.3]
[1643749657797,0.1797,2782.0,2781.6,0.37697137]
[1643749657998,0.1797,2782.0,2781.2,0.3]
[1643749658240,0.1797,2782.0,2780.9,1.0]
[1643749658241,0.1797,2782.0,2780.9,1.6]
[1643749658440,0.1797,2782.1,2780.9,1.6]
[1643749659039,0.92000959,2782.0,2781.7,0.4119778]
[1643749659239,0.1797,2781.9,2781.7,0.4119778]
[1643749660240,0.1797,2781.9,2780.9,0.61289865]
[1643749660442,2.43918275,2781.9,2781.2,0.3]
[1643749660640,2.43918275,2781.9,2780.9,0.61289865]
[1643749661441,0.87092858,2781.5,2780.9,0.61289865]
[1643749661903,0.87092858,2781.5,2780.9,0.31289865]
[1643749662094,0.1797,2781.9,2780.9,0.01289865]
[1643749662295,0.13819997,2782.2,2780.9,3.04798636]
[1643749662296,0.1797,2782.0,2780.9,3.04798636]
[1643749662496,0.1797,2782.1,2780.9,5.36258636]
[1643749662697,0.31789997,2782.2,2780.9,5.36258636]
[1643749662897,0.31789997,2782.2,2781.0,0.3]
[1643749663097,0.91060753,2782.0,2781.0,0.3]
[1643749663500,0.91060753,2782.0,2781.0,1.19885]
[1643749663902,0.91060753,2782.0,2781.2,0.80936467]
[1643749664099,0.31789997,2782.2,2781.2,0.80936467]
[1643749664301,0.31789997,2782.2,2781.2,1.10936467]
[1643749664501,0.1797,2782.2,2781.4,0.89877]
[1643749664700,0.1797,2782.5,2781.5,2.83512632]
[1643749664902,0.1797,2782.6,2781.5,3.3647723]
[1643749665102,0.92960035,2783.0,2782.4,0.34751459]
[1643749665501,0.92960035,2783.0,2782.1,0.89855]
[1643749665750,0.92960035,2783.0,2781.7,1.5075]
[1643749666148,0.92960035,2783.0,2781.7,1.8075]
[1643749666349,0.92960035,2783.0,2781.7,2.8075]
[1643749667150,1.51821632,2782.9,2781.8,0.79537778]
[1643749667350,0.90661646,2782.5,2781.7,0.3]
[1643749667749,0.90661646,2782.5,2781.6,0.25]
[1643749667951,0.90661646,2782.5,2781.3,3.01397]
[1643749668258,0.35904,2782.4,2781.2,0.70375272]
[1643749668556,0.36717147,2782.4,2781.4,0.34981781]
[1643749668756,0.3677767,2782.4,2781.4,0.34981781]
[1643749668955,0.3677767,2782.4,2781.0,0.89889]
[1643749669393,0.72720032,2781.6,2781.0,0.89889]
[1643749669591,0.72720032,2781.6,2781.0,1.49889]
[1643749669794,0.72585091,2781.6,2781.0,0.6]
[1643749669991,0.72585091,2781.6,2781.0,1.02539141]
[1643749670192,0.72585091,2781.6,2781.0,0.42539141]
[1643749670394,0.72585091,2781.6,2781.0,1.02539141]
[1643749671394,0.72585091,2781.6,2781.0,0.72539141]
[1643749671592,0.72585091,2781.6,2781.0,0.3]
[1643749671795,0.72585091,2781.6,2780.8,1.5349]
[1643749672192,0.72585091,2781.6,2780.8,0.6]
[1643749672595,0.72585091,2781.6,2780.8,0.3]
[1643749672792,0.72585091,2781.6,2781.0,0.43735979]
[1643749674258,0.72585091,2781.6,2780.8,0.3]
[1643749675254,0.1797,2782.1,2781.1,0.43060495]
[1643749676056,1.15654938,2782.3,2781.2,2.00685468]
[1643749676057,0.1797,2782.2,2781.2,2.00685468]
[1643749676258,0.1797,2782.2,2781.2,0.3]
[1643749676558,3.79714,2782.4,2781.2,0.3]
[1643749676559,0.81432863,2782.1,2781.2,0.3]
[1643749677788,0.81432863,2782.1,2781.3,0.77055226]
[1643749677990,0.1797,2782.3,2781.3,0.77055226]
[1643749678192,1.51841143,2782.2,2781.3,0.77055226]
[1643749679497,2.35659523,2782.2,2781.3,0.77055226]
[1643749679694,1.51841143,2782.1,2781.3,0.77055226]
[1643749679893,1.51841143,2782.1,2781.4,0.89878]
[1643749680095,1.51841143,2782.1,2781.5,0.3]
[1643749680496,1.51841143,2782.1,2781.6,1.97716119]
[1643749680748,0.1797,2782.6,2781.8,0.01244037]
[1643749680946,1.5182687,2782.5,2781.9,0.89855]
[1643749681349,1.5182687,2782.4,2782.1,0.3]
[1643749681546,0.76733279,2782.6,2782.1,0.3]
[1643749681747,1.51824013,2782.5,2782.1,0.3]
[1643749683452,1.51824013,2782.5,2781.8,1.25823496]
[1643749683654,1.51824013,2782.5,2781.8,2.15686496]
[1643749683851,1.51824013,2782.4,2781.8,3.05545576]
[1643749684051,0.31789997,2782.8,2781.8,3.05545576]
[1643749684052,1.51824013,2782.7,2781.8,3.05545576]
[1643749684251,1.51824013,2782.6,2781.8,3.05545576]
[1643749684497,0.13819997,2782.8,2781.8,3.05545576]
[1643749684498,1.51824013,2782.5,2781.8,3.05545576]
[1643749684702,0.13819997,2782.8,2781.9,1.0]
[1643749684703,1.51824013,2782.4,2781.9,1.0]
[1643749684900,0.89856346,2782.9,2781.8,3.05545576]
[1643749685097,1.51814778,2782.8,2781.8,3.05545576]
[1643749685896,1.51814778,2782.8,2782.1,0.4464007]
[1643749686097,1.51814778,2782.8,2782.2,0.89854]
[1643749686297,1.51814778,2782.8,2782.2,1.49854]
[1643749689240,1.51814778,2782.8,2782.2,0.6]
[1643749689241,3.51913397,2782.8,2782.2,0.6]
[1643749689442,1.51814778,2782.7,2782.2,0.6]
[1643749689641,1.51814778,2782.7,2782.1,0.3]
[1643749690043,1.51814778,2782.7,2781.9,0.89863]
[1643749690246,0.9389464,2782.4,2781.7,0.33542822]
[1643749690444,3.49666113,2782.3,2781.6,1.79724]
[1643749690647,1.51814778,2782.2,2781.4,3.35579]
[1643749690847,2.36999109,2782.1,2781.4,1.1287]
[1643749691044,1.51814778,2782.0,2781.2,7.95059]
[1643749691245,1.97974832,2781.9,2781.2,3.95489]
[1643749691544,0.80535841,2781.6,2781.2,3.95489]
[1643749691990,1.99365079,2781.5,2780.9,5.57997386]
[1643749692189,0.80535841,2781.6,2780.9,0.89896]
[1643749692589,1.51855435,2781.5,2780.9,0.89896]
[1643749693196,1.51855435,2781.5,2781.0,0.3]
[1643749695002,0.70199047,2781.1,2781.0,0.3]
[1643749695300,2.72552698,2782.0,2780.9,1.19896]
[1643749695500,1.51859394,2781.9,2780.9,1.19896]
[1643749695752,2.25671711,2781.8,2780.9,1.19896]
[1643749695951,1.51859394,2781.7,2780.9,1.19896]
[1643749696155,2.0640404,2781.6,2780.9,1.19896]
[1643749696356,0.7960303,2781.2,2780.9,1.19896]
[1643749696557,2.23308112,2781.9,2780.9,1.19896]
[1643749696757,1.69830801,2781.8,2780.9,1.19896]
[1643749696956,3.53221747,2781.7,2780.9,1.19896]
[1643749697155,1.51860801,2781.6,2780.9,1.19896]
[1643749697356,1.51860801,2781.5,2780.9,1.19896]
[1643749697561,1.51860801,2781.4,2780.9,1.19896]
[1643749697755,0.69320818,2781.3,2780.9,1.19896]
[1643749698357,3.13628962,2782.0,2780.9,1.19896]
[1643749698756,1.51862368,2781.9,2780.9,1.19896]
[1643749698956,2.17558073,2781.8,2780.9,1.19896]
[1643749699159,1.51862368,2781.7,2780.9,1.19896]
[1643749699582,1.96327244,2781.6,2780.9,1.19896]
[1643749699785,1.51862368,2781.5,2780.9,1.19896]
[1643749700186,2.54104641,2781.9,2780.9,1.19896]
[1643749700187,1.51862368,2781.4,2780.9,1.19896]
[1643749700383,0.1797,2781.9,2780.9,1.19896]
[1643749700583,1.51859157,2781.8,2780.9,2.0978851]
[1643749700788,1.99535941,2782.2,2780.9,2.0978851]
[1643749700789,1.51859157,2781.7,2780.9,2.08989879]
[1643749701086,0.1797,2782.1,2781.0,0.3]
[1643749701285,3.6969,2782.3,2781.3,0.8987]
[1643749701286,1.51845582,2782.0,2781.3,0.8987]
[1643749701485,1.51845582,2781.9,2781.3,1.1987]
[1643749701686,1.51845582,2781.8,2781.5,0.33473082]
[1643749701886,0.85274767,2782.0,2781.5,0.33473082]
[1643749702086,1.51841294,2781.9,2781.5,0.33473082]
[1643749702486,1.51841294,2781.9,2781.5,1.23347082]
[1643749702689,1.51841294,2781.9,2781.5,1.53347082]
[1643749703138,1.51695924,2781.9,2781.5,1.53347082]
[1643749703336,0.86011941,2782.4,2781.5,1.53347082]
[1643749703337,0.1797,2782.4,2781.5,1.53347082]
[1643749704039,0.1797,2782.4,2781.6,0.3]
[1643749704239,0.72753475,2782.1,2781.6,0.3]
[1643749707198,0.1797,2782.6,2781.8,0.89871]
[1643749707500,2.79787454,2782.8,2781.8,0.89871]
[1643749707501,0.1797,2782.7,2781.8,0.89871]
[1643749707697,0.1797,2782.7,2781.8,1.61236199]
[1643749709102,0.91968648,2782.2,2781.8,1.19871]
[1643749709504,0.91968648,2782.2,2781.8,0.3]
[1643749709903,0.91968648,2782.2,2781.5,0.3]
[1643749710104,2.90348574,2782.7,2781.6,0.89878]
[1643749710304,0.1797,2782.7,2781.6,0.89878]
[1643749710640,2.8785194,2782.7,2781.6,0.89878]
[1643749711037,0.68041941,2782.5,2781.5,0.3]
[1643749711236,2.16384778,2782.4,2781.5,0.3]
[1643749711439,1.95924225,2782.4,2781.5,0.3]
[1643749711638,1.98024786,2782.4,2781.6,0.89878]
[1643749712038,0.92017755,2781.8,2781.6,0.89878]
[1643749712239,0.92017755,2781.8,2781.4,1.79742]
[1643749712745,0.92017755,2781.8,2781.2,1.79767]
[1643749713343,0.92017755,2781.8,2781.2,2.09767]
[1643749713543,0.1797,2782.1,2781.2,2.09767]
[1643749714686,0.1797,2782.1,2781.3,0.32252213]
[1643749714990,0.1797,2782.1,2781.3,1.22134213]
[1643749715386,0.89923444,2781.8,2781.3,0.89882]
[1643749716389,3.11954723,2782.4,2781.4,0.39018401]
[1643749716589,0.86011941,2782.4,2781.6,0.89879]
[1643749716791,0.1797,2782.4,2781.6,1.19879]
[1643749717189,2.18616805,2782.5,2781.6,1.19879]
[1643749717390,0.1797,2782.5,2781.6,1.19879]
[1643749717594,0.1797,2782.5,2781.6,1.32573]
[1643749717793,0.68041941,2782.7,2781.8,0.89857]
[1643749717794,0.1797,2782.7,2781.8,0.89857]
[1643749717994,0.68041941,2782.9,2781.8,0.89857]
[1643749717995,0.68041941,2782.9,2781.8,1.19857]
[1643749718244,2.1797,2783.1,2781.9,0.40117213]
[1643749718451,2.1797,2783.1,2781.9,0.91817213]
[1643749718844,0.1797,2783.1,2782.0,0.33257582]
[1643749719844,0.92334314,2782.9,2782.2,0.89852]
[1643749720045,0.92334314,2782.9,2782.2,2.3970309]
[1643749721048,0.92334314,2782.9,2782.2,2.0970309]
[1643749721445,0.86001941,2783.2,2782.2,2.0970309]
[1643749721648,0.86001941,2783.3,2782.4,0.8985]
[1643749721896,0.1796,2783.3,2782.4,2.39580891]
[1643749722095,0.1796,2783.3,2782.4,1.62424891]
[1643749722297,0.86001941,2783.5,2782.4,2.76244888]
[1643749722498,0.1796,2783.6,2782.9,0.90365657]
[1643749722697,1.73831048,2783.7,2783.0,0.8982]
[1643749722896,1.05789107,2783.7,2783.1,0.8981905]
[1643749723301,1.51776489,2783.6,2783.1,0.8981905]
[1643749724801,1.51776489,2783.6,2783.2,0.89823]
[1643749725201,1.51776489,2783.6,2783.2,1.19823]
[1643749726842,1.51776489,2783.5,2783.2,1.49823]
[1643749727044,3.1096839,2784.2,2783.2,1.49823]
[1643749727242,3.1096839,2784.2,2783.4,0.89817]
[1643749727446,0.1796,2784.3,2783.4,0.89817]
[1643749727447,1.51765246,2784.1,2783.4,0.89817]
[1643749727646,1.51765246,2784.0,2783.5,0.3]
[1643749727849,2.33839612,2783.9,2783.5,0.3]
[1643749728046,1.51765246,2783.8,2783.5,0.3]
[1643749728247,1.51765246,2783.8,2783.4,0.36672527]
[1643749729147,1.51765246,2783.8,2783.4,0.66672527]
[1643749729406,0.1796,2784.3,2783.4,1.03089668]
[1643749729595,1.51751969,2784.2,2783.4,1.03089668]
[1643749729795,1.51751969,2784.2,2783.4,0.66672527]
[1643749731199,0.91153108,2783.9,2783.4,0.66672527]
[1643749731401,1.51751969,2783.8,2783.4,0.36672527]
[1643749731804,1.51751969,2783.8,2783.3,1.79633]
[1643749732403,1.87523434,2783.8,2783.3,1.79633]
[1643749732604,1.51751969,2783.7,2783.3,1.79633]
[1643749732803,1.51751969,2783.6,2783.3,1.79633]
[1643749733004,1.51751969,2783.8,2783.3,1.79633]
[1643749733262,1.51751969,2783.7,2783.3,1.79633]
[1643749733462,0.864773,2783.4,2783.3,1.79633]
[1643749735165,0.1296,2783.9,2783.3,1.79633]
[1643749735364,0.17965,2784.1,2783.3,1.79633]
[1643749735365,1.51768845,2783.8,2783.3,1.79633]
[1643749735564,1.51768845,2783.7,2783.3,1.79633]
[1643749735765,0.1796,2784.0,2783.3,1.79633]
[1643749735766,1.51768845,2783.9,2783.3,1.79633]
[1643749735966,1.51768845,2783.8,2783.3,1.79633]
[1643749736166,0.71733362,2783.5,2783.3,1.79633]
[1643749737991,0.1796,2784.0,2783.3,1.79633]
[1643749738196,1.51771176,2783.9,2783.3,1.79633]
[1643749738395,1.51771176,2783.8,2783.3,1.79633]
[1643749738695,1.51771176,2783.7,2783.3,1.79633]
[1643749738897,1.51771176,2783.6,2783.3,1.79633]
[1643749739097,0.83973736,2783.6,2783.3,1.79633]
[1643749741467,0.1796,2784.1,2783.3,1.79633]
[1643749741668,1.51769338,2784.0,2783.3,1.79633]
[1643749741869,0.1796,2783.9,2783.3,1.79633]
[1643749742067,1.51769338,2783.8,2783.3,1.79633]
[1643749742469,1.51769338,2783.7,2783.3,1.79633]
[1643749742671,0.94265506,2783.5,2783.3,1.79633]
[1643749743074,0.1796,2784.1,2783.3,1.79633]
[1643749743272,1.51768058,2784.0,2783.3,1.79633]
[1643749743473,0.1796,2783.9,2783.3,1.79633]
[1643749743675,1.51768058,2783.8,2783.3,3.78618959]
[1643749743875,0.1796,2784.2,2783.3,4.08618959]
[1643749744075,1.51751618,2784.1,2783.3,4.08618959]
[1643749744419,0.01219446,2784.4,2783.4,1.7961557]
[1643749744420,0.1796,2784.3,2783.4,1.7961557]
[1643749744621,1.51736863,2784.2,2783.5,3.36631396]
[1643749744917,0.1796,2784.5,2783.6,0.517]
[1643749745115,1.51729495,2784.4,2783.7,2.23158121]
[1643749745314,1.51729495,2784.3,2783.8,0.3]
[1643749745516,0.73859711,2784.4,2783.8,0.3]
[1643749745914,1.51729547,2784.3,2783.8,1.19797]
[1643749747119,1.51729547,2784.3,2783.4,2.87329]
[1643749747315,1.51729547,2784.3,2783.5,1.19821]
[1643749747516,1.69689547,2784.3,2783.5,1.19821]
[1643749747716,1.51729547,2784.2,2783.5,0.89821]
[1643749748016,0.87377433,2783.8,2783.4,1.97336709]
[1643749748857,0.87377433,2783.8,2783.5,0.89821]
[1643749750260,1.51761697,2783.7,2783.3,0.89828]
[1643749750465,1.51761697,2783.7,2783.0,1.79656]
[1643749751359,0.67296534,2783.3,2783.0,1.79656]
[1643749752609,1.51786025,2783.2,2782.7,1.79672]
[1643749753214,0.67296534,2783.3,2782.7,1.79672]
[1643749754217,1.51784473,2783.2,2782.7,1.79672]
[1643749754820,1.51784473,2783.2,2782.7,2.09672]
[1643749755017,0.67296534,2783.3,2782.7,2.09672]
[1643749755217,1.51784644,2783.2,2782.7,2.09672]
[1643749755670,1.51784644,2783.2,2782.7,1.79672]
[1643749756469,0.1796,2783.1,2782.5,1.79687]
[1643749756669,1.51784644,2783.0,2782.5,1.79687]
[1643749757171,1.51784644,2782.9,2782.5,1.79687]
[1643749757474,1.51784644,2782.8,2782.5,1.79687]
[1643749757668,0.1796,2783.3,2782.5,1.79687]
[1643749757872,0.73155611,2782.8,2782.5,1.79687]
[1643749758073,0.1796,2783.1,2782.5,1.79687]
[1643749758272,0.86006941,2783.4,2782.5,1.79687]
[1643749758273,1.51807207,2783.0,2782.5,1.79687]
[1643749758472,1.51807207,2782.9,2782.5,1.79687]
[1643749758671,1.51807207,2782.8,2782.5,1.79687]
[1643749758871,0.1796,2783.3,2782.5,1.79687]
[1643749759270,0.83391699,2782.8,2782.5,1.79687]
[1643749759501,1.51811643,2782.7,2782.5,1.79687]
[1643749762305,1.51811643,2782.6,2782.5,1.79687]
[1643749762506,1.51811643,2783.0,2782.5,1.79687]
[1643749764046,2.28026592,2783.0,2782.5,1.79687]
[1643749764247,1.51811643,2782.9,2782.5,1.79687]
[1643749765849,1.51811643,2782.9,2782.6,0.3]
[1643749766051,1.51811643,2782.9,2782.5,1.79687]
[1643749766452,1.51811643,2782.9,2782.6,2.2913928]
[1643749766653,0.1796,2783.5,2782.6,2.2913928]
[1643749766902,0.88498302,2783.8,2783.2,0.32707108]
[1643749766903,1.51785912,2783.4,2783.2,0.32707108]
[1643749767100,1.51785912,2783.3,2783.1,1.79657]
[1643749767299,1.51785912,2783.2,2783.1,1.79657]
[1643749767699,0.94713807,2783.8,2783.1,1.79657]
[1643749767902,1.51769096,2783.7,2783.1,1.79657]
[1643749768503,1.51769096,2783.7,2783.1,2.20501294]
[1643749768705,1.51769096,2783.7,2783.1,1.79657]
[1643749768903,1.51769096,2783.7,2783.2,0.89829]
[1643749769904,1.51769096,2783.7,2783.1,1.075929]
[1643749770122,1.69729096,2783.7,2783.1,1.075929]
[1643749770307,2.37771037,2783.7,2783.1,1.075929]
[1643749770508,1.51769096,2783.6,2783.1,1.075929]
[1643749773464,0.86210131,2783.3,2783.1,1.075929]
[1643749773664,1.51769096,2783.2,2783.1,1.075929]
[1643749776402,1.51769096,2783.2,2782.7,2.09677]
[1643749777007,1.51769096,2783.2,2782.7,1.79677]
[1643749777204,1.51769096,2783.2,2782.5,0.89854]
[1643749777403,1.51769096,2783.2,2782.3,0.25]
[1643749777404,0.1796,2783.1,2782.3,0.25]
[1643749777604,0.1796,2783.1,2782.1,5.786]
[1643749777605,0.88848515,2782.8,2782.1,5.786]
[1643749777904,1.51769096,2782.7,2782.1,2.0972]
[1643749778556,1.51769096,2782.7,2782.1,1.7972]
[1643749778759,1.51769096,2782.7,2781.8,1.79734]
[1643749778760,0.90888439,2782.3,2781.8,1.79734]
[1643749778955,0.18928164,2782.7,2781.8,1.79734]
[1643749779156,1.51819406,2782.6,2781.8,1.79734]
[1643749779657,0.86011941,2783.2,2781.8,2.09734]
[1643749779856,1.51810483,2783.1,2782.2,0.89862]
[1643749780057,0.90740085,2782.7,2782.2,0.89862]
[1643749780257,0.90740085,2782.7,2782.2,1.19862]
[1643749780258,1.51810483,2782.6,2782.2,1.19862]
[1643749780658,1.51810483,2782.6,2782.2,0.89862]
[1643749781659,1.51810483,2782.6,2782.2,1.19862]
[1643749782698,1.51810483,2782.6,2782.2,0.89862]
[1643749783907,1.51810483,2782.6,2782.2,1.19862]
[1643749784107,0.86011941,2783.1,2782.2,0.89862]
[1643749784108,1.51810483,2782.5,2782.2,0.89862]
[1643749784308,1.51810483,2783.0,2782.2,0.89862]
[1643749784508,1.69770483,2782.9,2782.2,1.19862]
[1643749784707,1.51810483,2782.8,2782.2,1.19862]
[1643749784909,0.1796,2782.7,2782.2,1.19862]
[1643749785108,1.51810483,2782.6,2782.2,1.19862]
[1643749785508,1.51810483,2782.6,2782.2,0.89862]
[1643749785765,1.51810483,2782.6,2782.2,1.19862]
[1643749786165,1.51810483,2782.6,2782.2,0.89862]
[1643749787664,1.69780483,2782.6,2782.2,0.89862]
[1643749787862,1.51810483,2782.5,2782.2,0.89862]
[1643749788263,1.51810483,2782.4,2782.2,0.89862]
[1643749788467,0.92770845,2782.7,2782.2,0.89862]
[1643749788664,1.51816635,2782.6,2782.2,0.89862]
[1643749789507,2.28954136,2782.5,2781.7,1.977]
[1643749789713,1.87751635,2782.4,2781.4,7.72]
[1643749789911,4.6787163,2782.3,2781.4,7.72]
[1643749790109,0.95496619,2781.8,2781.4,7.47]
[1643749790310,1.51816635,2781.7,2781.4,7.47]
[1643749790910,3.48639892,2781.7,2781.4,7.47]
[1643749791210,1.51816635,2781.6,2781.4,7.47]
[1643749791412,1.51816635,2781.6,2780.9,0.7001275]
[1643749792409,1.51692109,2781.6,2780.9,0.7001275]
[1643749792811,1.51692109,2781.6,2781.0,1.79786]
[1643749793474,2.14793257,2781.7,2781.0,1.79786]
[1643749795372,2.14793257,2781.7,2780.8,1.79798]
[1643749795973,2.32758257,2781.7,2780.8,1.79798]
[1643749796371,2.32758257,2781.7,2781.0,0.38946924]
[1643749796773,2.14793257,2781.7,2781.0,0.38946924]
[1643749797804,2.14793257,2781.7,2780.8,1.79798]
[1643749799111,2.32758257,2781.7,2780.8,2.23442309]
[1643749799305,0.1797,2781.7,2780.8,2.23442309]
[1643749799506,0.91572913,2781.3,2780.8,2.23442309]
[1643749800945,0.1797,2781.7,2780.8,2.23442309]
[1643749801144,0.1797,2781.8,2780.8,2.23442309]
[1643749802946,0.86006941,2782.1,2780.8,2.23442309]
[1643749802947,0.1797,2782.1,2780.9,0.3]
[1643749803152,0.1797,2782.1,2780.9,0.6]
[1643749803357,0.1797,2782.2,2780.9,0.7797]
[1643749803556,0.1797,2782.2,2781.0,0.1797]
[1643749803755,0.1797,2782.2,2781.9,0.41055974]
[1643749804054,0.1797,2782.3,2781.9,0.3429546]
[1643749804406,0.1797,2782.5,2781.9,0.3429546]
[1643749804603,1.06463302,2783.0,2781.9,0.3429546]
[1643749804604,0.1797,2782.6,2781.9,0.3429546]
[1643749804803,2.82807041,2782.8,2781.9,0.3429546]
[1643749805003,0.92912527,2782.5,2781.9,0.3429546]
[1643749805205,0.1797,2782.4,2781.9,0.3429546]
[1643749806006,0.1797,2782.9,2781.9,0.3429546]
[1643749806207,0.86011941,2782.9,2781.9,0.3429546]
[1643749806408,1.99922958,2782.8,2781.9,0.3429546]
[1643749806607,0.1797,2782.7,2781.9,0.3429546]
[1643749806806,0.68877492,2782.4,2781.9,0.3429546]
[1643749807010,0.68877492,2782.4,2781.7,1.1986362]
[1643749807406,0.68877492,2782.4,2781.9,0.89867]
[1643749807607,0.68877492,2782.4,2781.5,3.17529975]
[1643749807905,0.1797,2782.7,2781.5,2.99559975]
[1643749808364,0.1797,2782.7,2781.5,2.09746]
[1643749808570,0.1797,2782.7,2781.7,0.89874]
[1643749808865,0.1797,2782.7,2781.5,1.79746]
[1643749809065,0.86011941,2782.7,2781.7,0.3463124]
[1643749809265,2.21020059,2782.6,2781.7,0.3463124]
[1643749809468,0.86987084,2782.3,2781.7,0.3463124]
[1643749810271,0.1797,2782.5,2781.7,0.3463124]
[1643749810469,0.1797,2782.5,2781.7,1.2450524]
[1643749811473,0.77473482,2782.3,2781.7,1.2450524]
[1643749812512,1.51844168,2782.2,2781.7,1.2450524]
[1643749813512,1.51844168,2782.1,2781.7,1.2450524]
[1643749813713,0.1797,2782.7,2781.7,1.2450524]
[1643749813913,1.51843523,2782.6,2781.7,1.2450524]
[1643749814111,0.1797,2782.5,2781.7,1.2450524]
[1643749814314,1.51843523,2782.4,2781.5,1.79746]
[1643749814515,2.01977848,2782.3,2781.5,1.79746]
[1643749814713,1.51843523,2782.2,2781.5,1.79746]
[1643749815314,0.923,2782.0,2781.5,2.15712616]
[1643749815514,0.923,2782.0,2781.5,1.79746]
[1643749815749,2.01977848,2782.3,2781.3,9.05249]
[1643749815950,1.51847102,2782.2,2781.3,2.04759]
[1643749816149,1.51847102,2782.2,2781.3,1.79759]
[1643749816752,2.3313101,2782.2,2781.5,1.24879325]
[1643749816951,1.51847102,2782.1,2781.5,1.24879325]
[1643749817151,1.51847102,2782.0,2781.5,1.24879325]
[1643749817350,0.1797,2782.5,2781.5,1.24879325]